bitfinex-derivatives/quotes_SOLF0:USTF0_20241009
["timestamp","ask_amount","ask_price","bid_price","bid_amount"]
[1728507235532,0.12502,139.19,139.07,3.66591419]
[1728507235533,0.12502,139.19,139.13,2.8466]
[1728507236435,0.12502,139.19,139.07,3.66591419]
[1728507236436,27.74502,139.19,139.07,27.74502]
[1728507236748,27.74502,139.19,139.08,2.83]
[1728507237638,27.62,139.16,139.08,2.83]
[1728507238039,3.5962,139.13,139.08,6.4271]
[1728507238240,27.62,139.16,139.07,0.12502]
[1728507238449,3.598,139.06,139.02,1.4093]
[1728507238646,27.62,139.08,139.01,0.12502]
[1728507238940,3.5968,139.11,139.06,3.5979]
[1728507239132,0.12502,139.13,139.01,27.74502]
[1728507239749,3.5963,139.12,139.04,3.5982]
[1728507239949,0.12502,139.13,139.01,27.74502]
[1728507240140,0.12502,139.13,139.03,27.62]
[1728507240342,0.12502,139.13,139.04,2.827]
[1728507240644,0.12502,139.13,139.08,27.62]
[1728507241235,0.12502,139.13,139.12,3.5963]
[1728507241635,0.12502,139.19,139.1,27.62]
[1728507241844,0.12502,139.19,139.12,27.62]
[1728507242046,0.12502,139.19,139.07,17.28502]
[1728507242047,0.12502,139.19,139.15,27.62]
[1728507242258,3.71802,139.25,139.2,3.5942]
[1728507242547,3.71802,139.25,139.15,31.25985334]
[1728507242548,0.12502,139.25,139.15,48.41985334]
[1728507242741,0.12502,139.25,139.18,27.62]
[1728507243243,0.12502,139.25,139.13,30.57112]
[1728507243440,27.62,139.24,139.13,30.57112]
[1728507244047,27.62,139.24,139.14,3.5958]
[1728507244237,27.62,139.22,139.13,2.95112]
[1728507244942,27.62,139.2,139.13,2.95112]
[1728507245149,3.595,139.18,139.13,2.95112]
[1728507245649,3.5952,139.17,139.13,2.95112]
[1728507245845,27.62,139.22,139.13,2.95112]
[1728507246243,27.62,139.2,139.13,0.12502]
[1728507246448,27.62,139.17,139.13,0.12502]
[1728507246845,3.5953,139.16,139.13,0.12502]
[1728507247149,28.4733,139.2,139.13,0.12502]
[1728507247451,27.62,139.22,139.13,0.12502]
[1728507247643,28.4722,139.22,139.13,0.12502]
[1728507247843,28.4722,139.22,139.13,3.72102]
[1728507248043,28.4722,139.22,139.13,0.12502]
[1728507248342,28.4722,139.22,139.13,3.72102]
[1728507249155,3.5949,139.18,139.14,3.5956]
[1728507249451,27.62,139.2,139.13,0.12502]
[1728507250245,3.5957,139.15,139.13,0.12502]
[1728507250444,27.62,139.2,139.13,0.12502]
[1728507250856,27.62,139.15,139.13,0.12502]
[1728507251051,27.62,139.15,139.08,1.3526]
[1728507251243,3.5966,139.11,139.08,1.3526]
[1728507251445,27.62,139.15,139.08,1.3526]
[1728507251859,3.5967,139.11,139.08,1.3526]
[1728507252850,27.62,139.15,139.08,1.3526]
[1728507253462,3.5967,139.11,139.08,1.3526]
[1728507253655,27.62,139.15,139.07,1.54422]
[1728507254049,27.62,139.12,139.07,0.12502]
[1728507254858,3.5966,139.11,139.07,0.12502]
[1728507255157,27.62,139.17,139.07,0.12502]
[1728507255352,0.12502,139.19,139.07,27.74502]
[1728507255556,0.12502,139.19,139.11,3.5965]
[1728507255955,0.12502,139.19,139.07,27.74502]
[1728507255956,0.12502,139.19,139.09,27.62]
[1728507256157,0.12502,139.19,139.1,1.3446]
[1728507256359,0.12502,139.19,139.11,2.7667]
[1728507256659,0.12502,139.19,139.12,27.62]
[1728507257752,3.71972,139.19,139.14,3.5955]
[1728507257953,0.12502,139.19,139.12,27.62]
[1728507258358,0.12502,139.19,139.11,2.7667]
[1728507258759,0.12502,139.19,139.11,1.4009]
[1728507258960,27.62,139.18,139.1,1.3446]
[1728507259155,28.3462,139.18,139.07,1.49082]
[1728507259356,3.5972,139.09,139.07,0.12502]
[1728507259656,27.62,139.13,139.07,0.12502]
[1728507260154,28.3462,139.18,139.07,0.12502]
[1728507260350,44.93,139.17,139.07,0.12502]
[1728507260765,0.7262,139.18,139.07,45.05502]
[1728507261061,16.88492,139.19,139.12,44.93]
[1728507261062,3.71952,139.19,139.12,44.93]
[1728507261254,0.12502,139.19,139.12,44.93]
[1728507261455,0.12502,139.19,139.13,2.7672]
[1728507261949,0.12502,139.19,139.14,1.3392]
[1728507262562,0.12502,139.19,139.16,44.93]
[1728507262756,0.12502,139.25,139.16,44.93]
[1728507262960,3.5944,139.2,139.14,4.9347]
[1728507263265,44.93,139.24,139.14,1.3392]
[1728507263559,3.71812,139.25,139.19,3.5943]
[1728507263761,0.12502,139.25,139.17,44.93]
[1728507263965,0.12502,139.25,139.14,1.3392]
[1728507264266,45.05502,139.25,139.14,1.3392]
[1728507264658,3.5944,139.2,139.15,3.5953]
[1728507264867,3.5944,139.2,139.14,1.3392]
[1728507265061,44.93,139.18,139.13,0.12502]
[1728507265264,3.5958,139.14,139.13,0.12502]
[1728507265456,44.93,139.2,139.08,1.4033]
[1728507265457,48.46921877,139.16,139.08,1.4033]
[1728507265762,0.7261,139.17,139.07,0.12502]
[1728507265763,44.93,139.13,139.07,0.12502]
[1728507266367,3.5973,139.08,139.07,0.12502]
[1728507266561,44.93,139.14,139.07,0.12502]
[1728507266863,3.5972,139.09,139.07,0.12502]
[1728507267259,44.93,139.08,139.01,0.12502]
[1728507267461,0.12502,139.13,139.01,0.12502]
[1728507267661,44.93,139.04,139.01,0.12502]
[1728507267855,44.93,139.04,138.95,0.12502]
[1728507268059,44.93,139.01,138.95,0.12502]
[1728507268470,3.60168524,139.05,138.95,0.12502]
[1728507268674,0.12502,139.07,138.95,0.12502]
[1728507268858,44.93,139.05,138.95,0.12502]
[1728507269061,48.5283,139.05,138.98,3.5999]
[1728507269268,0.12502,139.07,138.96,44.93]
[1728507269463,0.12502,139.07,138.96,1.4188]
[1728507269666,0.12502,139.07,138.99,44.93]
[1728507269958,0.12502,139.07,139.01,44.93]
[1728507270159,3.72262,139.07,139.01,48.5289]
[1728507270358,0.12502,139.07,138.96,46.3488]
[1728507270654,0.12502,139.07,139.01,44.93]
[1728507271758,3.5979,139.06,139.0,6.337]
[1728507271954,0.12502,139.07,139.0,1.3757]
[1728507272570,0.12502,139.07,138.96,46.3488]
[1728507272571,44.93,139.06,138.96,1.4188]
[1728507273171,0.12502,139.07,138.96,46.3488]
[1728507273368,0.12502,139.07,139.0,3.5993]
[1728507273561,0.12502,139.07,138.98,44.93]
[1728507273758,0.12502,139.07,138.99,44.93]
[1728507273968,0.12502,139.07,139.03,44.93]
[1728507275059,0.12502,139.13,139.05,44.93]
[1728507275269,0.12502,139.13,139.0,1.3964]
[1728507275270,0.12502,139.13,139.08,44.93]
[1728507275469,0.12502,139.13,139.06,44.93]
[1728507275661,3.72112,139.13,139.07,3.5975]
[1728507275863,3.72112,139.13,139.06,44.93]
[1728507276171,0.12502,139.13,139.06,44.93]
[1728507276362,3.72112,139.13,139.06,48.5277]
[1728507276664,0.12502,139.13,139.08,44.93]
[1728507278165,0.12502,139.13,139.09,3.597]
[1728507278463,0.12502,139.13,139.08,44.93]
[1728507279269,0.12502,139.13,139.1,3.5968]
[1728507279461,0.12502,139.13,139.08,44.93]
[1728507280372,0.12502,139.19,139.12,44.93]
[1728507280666,0.12502,139.19,139.14,3.5958]
[1728507281268,0.12502,139.19,139.12,44.93]
[1728507281479,0.12502,139.25,139.18,44.93]
[1728507281657,0.12502,139.25,139.2,44.93]
[1728507281862,0.12502,139.31,139.22,44.93]
[1728507282359,0.12502,139.31,139.23,1.3732]
[1728507282668,0.12502,139.31,139.19,0.12502]
[1728507282669,44.93,139.3,139.19,0.12502]
[1728507283063,44.93,139.3,139.19,3.71952]
[1728507283259,44.93,139.27,139.19,0.12502]
[1728507283465,3.5936,139.23,139.19,0.12502]
[1728507283763,44.93,139.27,139.19,0.12502]
[1728507284584,44.93,139.25,139.19,0.12502]
[1728507284768,3.5942,139.2,139.19,0.12502]
[1728507286575,3.594,139.21,139.19,0.12502]
[1728507286775,44.93,139.27,139.19,0.12502]
[1728507286969,44.93,139.3,139.19,0.12502]
[1728507287166,44.93,139.28,139.19,0.12502]
[1728507287877,44.93,139.3,139.19,3.71942]
[1728507288574,0.12502,139.31,139.19,45.05502]
[1728507289175,3.5926,139.27,139.19,45.05502]
[1728507289372,0.12502,139.31,139.19,45.05502]
[1728507289682,0.12502,139.31,139.21,44.93]
[1728507289867,0.12502,139.31,139.22,1.3241]
[1728507290270,3.592,139.29,139.24,3.5932]
[1728507290671,0.12502,139.31,139.24,44.93]
[1728507290872,3.71662,139.31,139.26,3.5925]
[1728507291080,0.12502,139.31,139.24,46.3431]
[1728507291468,0.12502,139.31,139.27,3.5924]
[1728507292275,0.12502,139.31,139.28,3.5921]
[1728507292483,0.12502,139.37,139.3,44.93]
[1728507292666,0.12502,139.43,139.33,44.93]
[1728507293279,3.5889,139.41,139.35,3.5901]
[1728507293580,3.5889,139.41,139.33,44.93]
[1728507294071,0.12502,139.43,139.38,44.93]
[1728507294668,0.12502,139.43,139.31,45.05502]
[1728507294669,44.93,139.42,139.31,45.05502]
[1728507294871,0.12502,139.43,139.33,44.93]
[1728507295075,3.5891,139.4,139.34,3.5906]
[1728507296283,0.12502,139.43,139.33,44.93]
[1728507296577,0.12502,139.43,139.32,1.4453]
[1728507296578,45.05502,139.43,139.32,1.4453]
[1728507297282,0.12502,139.43,139.32,1.4453]
[1728507297687,0.12502,139.43,139.32,2.7843]
[1728507297871,0.12502,139.43,139.33,1.3044]
[1728507298077,3.5896,139.38,139.33,4.8952]
[1728507298579,3.5894,139.39,139.33,4.8952]
[1728507299284,44.93,139.42,139.33,1.3044]
[1728507299484,44.93,139.4,139.33,1.3044]
[1728507299679,44.93,139.4,139.31,0.12502]
[1728507299680,44.93,139.37,139.31,0.12502]
[1728507299884,3.5911,139.32,139.31,0.12502]
[1728507300084,44.93,139.37,139.31,0.12502]
[1728507300587,44.93,139.32,139.25,0.12502]
[1728507300974,3.5917,139.3,139.25,0.12502]
[1728507301174,44.93,139.32,139.25,0.12502]
[1728507301375,44.93,139.34,139.25,0.12502]
[1728507301579,0.12502,139.37,139.25,45.05502]
[1728507301580,45.05502,139.37,139.25,45.05502]
[1728507301781,45.05502,139.37,139.25,0.12502]
[1728507301984,3.5915,139.31,139.26,3.5925]
[1728507302182,45.05502,139.37,139.25,0.12502]
[1728507302377,44.93,139.34,139.25,0.12502]
[1728507302579,44.93,139.34,139.25,3.71792]
[1728507302780,44.93,139.32,139.25,0.12502]
[1728507302977,3.5927,139.26,139.25,0.12502]
[1728507304082,44.93,139.24,139.19,332.89783]
[1728507304283,44.93,139.27,139.19,332.89783]
[1728507304589,3.5937,139.23,139.19,336.49233]
[1728507304800,44.93,139.25,139.19,332.89783]
[1728507305089,3.5942,139.21,139.19,332.89783]
[1728507305293,44.93,139.27,139.19,332.89783]
[1728507305690,3.5942,139.21,139.19,332.89783]
[1728507305892,44.93,139.22,139.19,332.89783]
[1728507306088,44.93,139.27,139.19,332.89783]
[1728507306089,48.5242,139.2,139.19,332.43363]
[1728507306395,48.5242,139.2,139.19,331.83043]
[1728507307198,48.5242,139.2,139.19,195.09043]
[1728507308300,3.5942,139.2,139.19,195.09043]
[1728507310609,48.5242,139.2,139.19,64.18043]
[1728507310912,48.5242,139.2,139.19,58.35043]
[1728507311417,3.5942,139.2,139.19,58.35043]
[1728507312507,48.5242,139.2,139.19,58.35043]
[1728507314114,3.5958,139.14,139.13,0.12502]
[1728507316120,44.93,139.14,138.89,14.28435376]
[1728507316415,3.5973,139.08,138.97,44.93]
[1728507316806,3.5973,139.08,138.99,3.5995]
[1728507317004,3.5973,139.08,139.0,40.43]
[1728507317410,3.5971,139.09,139.01,1.46452]
[1728507317811,40.43,139.12,139.01,1.46452]
[1728507318113,40.43,139.12,139.02,40.43]
[1728507318317,94.22,139.14,139.02,40.43]
[1728507318505,3.5969,139.1,139.02,40.43]
[1728507318809,94.22,139.14,139.02,40.43]
[1728507319014,94.22,139.14,139.05,3.5981]
[1728507319214,94.22,139.14,139.01,1.46452]
[1728507319215,40.43,139.12,139.01,1.46452]
[1728507319719,3.597,139.1,139.05,3.5981]
[1728507320116,3.5969,139.1,139.05,3.598]
[1728507320412,94.22,139.14,139.04,40.43]
[1728507320608,3.5963,139.12,139.06,3.5978]
[1728507320808,94.22,139.14,139.06,3.5978]
[1728507321014,94.22,139.14,139.05,2.8755]
[1728507321715,3.5962,139.13,139.07,3.72262]
[1728507321911,16.6,139.15,139.07,0.12502]
[1728507322110,16.6,139.16,139.07,0.12502]
[1728507322715,3.5964,139.12,139.07,3.72242]
[1728507322906,3.5964,139.12,139.07,0.12502]
[1728507323106,16.6,139.16,139.07,0.12502]
[1728507323310,40.43,139.17,139.08,3.5973]
[1728507323520,56.51,139.17,139.07,0.12502]
[1728507324015,3.5958,139.14,139.09,3.597]
[1728507324617,3.5958,139.14,139.1,3.5968]
[1728507324813,56.51,139.17,139.07,0.12502]
[1728507324814,3.5964,139.12,139.07,0.12502]
[1728507325208,60.14625664,139.17,139.07,0.12502]
[1728507325418,3.5961,139.13,139.07,0.12502]
[1728507326123,3.5957,139.15,139.08,3.5971]
[1728507326316,60.13115053,139.17,139.08,3.5971]
[1728507326512,60.13115053,139.17,139.07,0.12502]
[1728507327216,3.5965,139.12,139.07,0.12502]
[1728507327414,60.13115053,139.17,139.07,0.12502]
[1728507327618,40.43,139.1,139.07,0.12502]
[1728507327816,3.5973,139.08,139.07,0.12502]
[1728507328116,60.13115053,139.17,139.09,3.597]
[1728507328333,40.43,139.15,139.07,0.12502]
[1728507328711,40.43,139.12,139.07,0.12502]
[1728507328922,3.5973,139.08,139.07,0.12502]
[1728507329113,40.43,139.12,139.07,0.12502]
[1728507329315,3.5973,139.08,139.07,0.12502]
[1728507330225,3.5973,139.09,139.07,0.12502]
[1728507330412,40.43,139.1,139.07,0.12502]
[1728507330614,19.74796173,139.09,139.07,0.12502]
[1728507330912,3.5973,139.08,139.07,0.12502]
[1728507331525,3.5989,139.02,139.01,0.12502]
[1728507332415,40.43,139.05,139.01,0.12502]
[1728507332622,40.43,139.08,139.01,0.12502]
[1728507333022,3.5978,139.07,139.01,0.12502]
[1728507333219,56.51,139.1,139.01,0.12502]
[1728507333535,0.12502,139.13,139.01,0.12502]
[1728507333536,3.5968,139.11,139.06,3.5978]
[1728507333723,0.12502,139.13,139.06,3.5978]
[1728507334025,3.5969,139.1,139.05,3.5979]
[1728507334339,40.43,139.12,139.01,0.12502]
[1728507334928,0.12502,139.13,139.04,40.43]
[1728507335223,3.72132,139.13,139.08,3.5973]
[1728507335619,0.12502,139.13,139.04,40.43]
[1728507336422,3.72112,139.13,139.04,40.43]
[1728507336622,0.12502,139.13,139.06,40.43]
[1728507336827,0.12502,139.13,139.07,2.8431]
[1728507339424,3.5965,139.12,139.07,2.8431]
[1728507339629,0.12502,139.13,139.07,2.8431]
[1728507340031,40.43,139.1,139.01,0.12502]
[1728507340239,40.43,139.07,139.01,0.12502]
[1728507340437,15.58,139.12,139.01,0.12502]
[1728507340438,40.43,139.05,139.01,0.12502]
[1728507341036,44.02860471,139.05,139.01,0.12502]
[1728507341236,3.5989,139.02,139.01,0.12502]
[1728507341936,3.5984,139.04,139.01,0.12502]
[1728507342143,15.58,139.05,139.01,0.12502]
[1728507342334,56.01,139.05,139.01,0.12502]
[1728507342534,3.5989,139.03,139.01,0.12502]
[1728507342930,15.58,139.05,139.01,0.12502]
[1728507343242,3.5989,139.02,139.01,0.12502]
[1728507343443,15.58,139.05,139.01,0.12502]
[1728507344335,3.5989,139.02,139.01,0.12502]
[1728507344541,15.58,139.05,139.01,0.12502]
[1728507344742,3.5984,139.04,139.01,0.12502]
[1728507345038,15.58,139.05,139.01,0.12502]
[1728507345540,3.5989,139.02,139.01,0.12502]
[1728507346434,3.5989,139.02,138.95,0.12502]
[1728507346435,3.6004,138.97,138.95,0.12502]
[1728507346631,40.43,139.01,138.95,0.12502]
[1728507347341,3.6004,138.96,138.95,0.12502]
[1728507347531,59.52286727,138.96,138.89,0.12502]
[1728507347732,40.43,138.94,138.89,0.12502]
[1728507347939,3.602,138.9,138.89,0.12502]
[1728507348138,59.52286727,138.96,138.89,0.12502]
[1728507348339,3.6017,138.92,138.89,0.12502]
[1728507348636,59.52286727,138.96,138.89,0.12502]
[1728507349037,3.6015,138.92,138.89,0.12502]
[1728507349240,59.52286727,138.96,138.89,0.12502]
[1728507349735,15.58,138.96,138.89,0.12502]
[1728507349935,15.58,138.98,138.92,3.6013]
[1728507350240,15.58,138.98,138.91,40.43]
[1728507350437,15.58,138.98,138.92,1.437]
[1728507350648,40.55502,139.01,138.89,0.12502]
[1728507350649,0.12502,139.01,138.89,0.12502]
[1728507350838,56.01,139.0,138.89,0.12502]
[1728507351352,59.56581057,139.0,138.89,0.12502]
[1728507351643,59.56581057,139.0,138.89,3.72722]
[1728507352245,15.58,139.0,138.89,0.12502]
[1728507352451,0.12502,139.01,138.92,40.43]
[1728507352753,0.12502,139.01,138.95,40.43]
[1728507353648,3.5994,139.0,138.95,44.0305]
[1728507353845,0.12502,139.01,138.95,40.43]
[1728507354246,3.72432,139.01,138.96,3.6003]
[1728507354458,0.12502,139.01,138.93,4.0066]
[1728507355345,3.72432,139.01,138.96,3.6003]
[1728507355742,0.12502,139.01,138.94,40.43]
[1728507355945,3.5979,139.06,139.01,3.5991]
[1728507356348,0.12502,139.07,139.02,2.6856]
[1728507356541,94.99095068,139.13,139.02,43.1156]
[1728507356742,94.99095068,139.13,139.02,2.6856]
[1728507357150,0.12502,139.13,139.02,2.6856]
[1728507357347,0.12502,139.13,139.06,40.43]
[1728507357748,3.72112,139.13,139.06,40.43]
[1728507357945,0.12502,139.13,139.06,40.43]
[1728507358149,0.12502,139.13,139.08,40.43]
[1728507358450,0.12502,139.13,139.1,3.5968]
[1728507358946,0.12502,139.13,139.09,3.597]
[1728507359144,0.12502,139.13,139.06,40.43]
[1728507359350,0.12502,139.13,139.03,40.43]
[1728507359554,0.12502,139.13,139.02,2.6856]
[1728507359942,3.5974,139.08,139.02,2.6856]
[1728507360144,40.43,139.12,139.02,2.6856]
[1728507360546,3.5981,139.06,139.02,2.6856]
[1728507360746,40.43,139.09,139.02,2.6856]
[1728507361157,40.43,139.07,139.02,2.6856]
[1728507361345,40.43,139.07,139.02,1.3771]
[1728507361547,3.5986,139.04,139.02,1.3771]
[1728507361750,40.43,139.09,139.02,1.3771]
[1728507362451,0.12502,139.13,139.02,1.3771]
[1728507362654,0.12502,139.13,139.05,3.5981]
[1728507362655,3.5969,139.1,139.05,3.5981]
[1728507362851,0.12502,139.13,139.05,3.5981]
[1728507363245,0.12502,139.13,139.05,40.43]
[1728507363550,0.12502,139.13,139.08,40.43]
[1728507363755,0.12502,139.13,139.09,2.7436]
[1728507363952,0.12502,139.19,139.1,1.4063]
[1728507364163,0.12502,139.19,139.1,41.8363]
[1728507366864,3.5958,139.14,139.1,1.4063]
[1728507367048,3.5955,139.16,139.1,5.0029]
[1728507367251,40.55502,139.19,139.1,1.4063]
[1728507367558,40.43,139.16,139.1,1.4063]
[1728507368153,3.5961,139.13,139.1,1.4063]
[1728507368660,3.5968,139.1,139.09,1.3176]
[1728507368861,40.43,139.12,139.07,0.12502]
[1728507369062,40.43,139.14,139.07,0.12502]
[1728507369358,15.08,139.15,139.08,3.5972]
[1728507369556,55.51,139.15,139.07,0.12502]
[1728507370053,40.43,139.15,139.07,0.12502]
[1728507370259,3.5965,139.12,139.07,3.72242]
[1728507370461,40.43,139.15,139.07,0.12502]
[1728507370851,3.5973,139.08,139.07,0.12502]
[1728507371057,44.0273,139.08,139.07,0.12502]
[1728507371254,3.5973,139.08,139.07,0.12502]
[1728507374168,77.7,139.16,139.07,0.12502]
[1728507374357,40.43,139.18,139.07,40.55502]
[1728507374664,40.43,139.18,139.08,3.5973]
[1728507374860,40.43,139.18,139.07,40.55502]
[1728507375061,15.20502,139.19,139.07,40.55502]
[1728507375062,0.12502,139.19,139.09,40.43]
[1728507375269,0.12502,139.19,139.12,40.43]
[1728507375567,0.12502,139.25,139.07,0.12502]
[1728507375568,0.12502,139.25,139.17,3.5949]
[1728507375961,0.12502,139.25,139.16,40.43]
[1728507375962,3.5934,139.24,139.16,40.43]
[1728507376157,0.12502,139.25,139.16,40.43]
[1728507376158,0.12502,139.25,139.19,3.5943]
[1728507376359,0.12502,139.25,139.13,44.75922]
[1728507377061,3.5935,139.23,139.13,44.75922]
[1728507377257,0.12502,139.25,139.19,3.5944]
[1728507377460,0.12502,139.25,139.17,40.43]
[1728507377665,40.43,139.22,139.13,4.32922]
[1728507378169,3.5946,139.19,139.13,4.32922]
[1728507378359,3.5946,139.19,139.14,3.5956]
[1728507378558,40.43,139.22,139.13,4.32922]
[1728507378765,40.43,139.22,139.14,3.5957]
[1728507379163,40.55502,139.25,139.13,4.32922]
[1728507379359,40.43,139.22,139.13,4.32922]
[1728507379965,40.55502,139.25,139.13,4.32922]
[1728507380168,3.5944,139.2,139.13,4.32922]
[1728507380364,0.12502,139.25,139.16,40.43]
[1728507380563,0.12502,139.25,139.13,44.75922]
[1728507381363,3.5935,139.23,139.13,44.75922]
[1728507381562,3.5935,139.23,139.18,3.5946]
[1728507381863,0.12502,139.25,139.18,40.43]
[1728507382067,0.12502,139.25,139.16,40.43]
[1728507382367,3.5932,139.24,139.16,40.43]
[1728507382568,0.12502,139.25,139.13,44.75922]
[1728507382770,44.88,139.24,139.13,4.32922]
[1728507383266,3.5941,139.21,139.17,3.595]
[1728507383467,0.12502,139.25,139.14,44.88]
[1728507383968,0.12502,139.25,139.16,44.88]
[1728507384159,0.12502,139.25,139.14,44.88]
[1728507384970,3.5939,139.22,139.17,3.5949]
[1728507385270,0.12502,139.25,139.14,44.88]
[1728507385464,0.12502,139.25,139.13,4.32922]
[1728507385465,3.5953,139.17,139.13,7.92522]
[1728507385666,44.88,139.22,139.13,7.92522]
[1728507385667,44.88,139.22,139.13,4.32922]
[1728507386067,44.88,139.24,139.13,4.32922]
[1728507386272,1.50082,139.25,139.14,44.88]
[1728507386273,0.12502,139.25,139.14,44.88]
[1728507386475,44.88,139.24,139.13,4.32922]
[1728507387073,0.12502,139.25,139.14,44.88]
[1728507387672,3.5938,139.22,139.17,3.5948]
[1728507388076,0.12502,139.25,139.17,3.5948]
[1728507388277,0.12502,139.25,139.17,3.5949]
[1728507388869,3.5939,139.22,139.17,3.5949]
[1728507389271,0.12502,139.25,139.14,44.88]
[1728507389468,0.12502,139.25,139.19,44.88]
[1728507389674,0.12502,139.25,139.17,44.88]
[1728507389879,3.5933,139.24,139.21,3.5939]
[1728507390183,0.12502,139.25,139.21,3.5939]
[1728507390370,0.12502,139.25,139.17,44.88]
[1728507390972,0.12502,139.25,139.14,44.88]
[1728507391171,3.5941,139.21,139.17,3.5948]
[1728507391671,3.5938,139.22,139.17,3.595]
[1728507391876,0.12502,139.25,139.14,44.88]
[1728507392073,59.44,139.24,139.13,0.12502]
[1728507392279,3.5953,139.17,139.13,3.72102]
[1728507392471,14.56,139.24,139.14,1.4094]
[1728507392472,44.88,139.19,139.14,1.4094]
[1728507392878,1.3715,139.22,139.14,1.4094]
[1728507393078,44.88,139.21,139.14,1.4094]
[1728507393388,44.88,139.18,139.14,1.4094]
[1728507393678,44.88,139.18,139.13,0.12502]
[1728507394284,3.5958,139.14,139.13,0.12502]
[1728507394989,44.88,139.21,139.13,0.12502]
[1728507395191,44.88,139.23,139.16,3.5951]
[1728507395389,14.56,139.24,139.14,46.2009]
[1728507395390,3.5941,139.21,139.14,46.2009]
[1728507395783,3.5941,139.21,139.16,3.5952]
[1728507395990,3.5941,139.21,139.17,1.3358]
[1728507396185,0.12502,139.25,139.17,1.3358]
[1728507396394,0.12502,139.25,139.18,3.5947]
[1728507396599,3.5935,139.23,139.18,1.3716]
[1728507397588,0.12502,139.25,139.18,46.2516]
[1728507397998,0.12502,139.25,139.18,1.3716]
[1728507398890,0.12502,139.25,139.21,3.5939]
[1728507399091,0.12502,139.25,139.18,46.2516]
[1728507399294,0.12502,139.25,139.22,3.5936]
[1728507399485,46.2343,139.34,139.2,44.88]
[1728507399685,1.3543,139.34,139.2,44.88]
[1728507399886,3.71652,139.31,139.27,3.5923]
[1728507400083,0.12502,139.31,139.27,3.5923]
[1728507400284,0.12502,139.31,139.23,44.88]
[1728507400487,0.12502,139.31,139.25,44.88]
[1728507400696,0.12502,139.31,139.26,2.7952]
[1728507400886,1.4357,139.38,139.27,44.88]
[1728507401401,3.5901,139.36,139.31,3.5912]
[1728507401695,3.5896,139.38,139.33,3.5908]
[1728507401882,44.88,139.38,139.26,2.7952]
[1728507402083,0.12502,139.43,139.26,2.7952]
[1728507402288,44.88,139.36,139.26,2.7952]
[1728507402997,44.88,139.36,139.28,3.5922]
[1728507403198,44.88,139.36,139.26,2.7952]
[1728507403384,14.06,139.39,139.26,2.7952]
[1728507403385,44.88,139.33,139.26,2.7952]
[1728507403798,3.5914,139.31,139.26,6.3876]
[1728507403997,44.88,139.33,139.26,6.3876]
[1728507404200,44.88,139.33,139.26,2.7952]
[1728507404397,44.88,139.28,139.25,0.12502]
[1728507404599,44.88,139.29,139.25,0.12502]
[1728507404996,3.5927,139.26,139.25,0.12502]
[1728507405201,44.88,139.26,139.2,1.447]
[1728507405392,3.5942,139.2,139.19,0.12502]
[1728507406500,44.88,139.26,139.19,0.12502]
[1728507406914,3.5939,139.22,139.19,0.12502]